bitfinex/quotes_ETHUSD_20240614
["timestamp","ask_amount","ask_price","bid_price","bid_amount"]
[1718340405251,0.669,3494.6,3494.2,1.43344514]
[1718340406090,7.45,3495.2,3494.3,2.467]
[1718340406275,7.45,3495.2,3494.3,3.90044514]
[1718340406591,0.669,3494.9,3494.3,3.90044514]
[1718340406768,0.669,3494.9,3494.3,4.34120536]
[1718340408475,7.45,3495.2,3494.4,1.43344514]
[1718340408685,8.119,3495.2,3494.5,2.4684]
[1718340408885,8.119,3495.2,3494.6,1.89257153]
[1718340409186,8.119,3495.2,3494.6,2.14121998]
[1718340410989,7.45,3495.2,3494.6,2.14121998]
[1718340411158,8.119,3495.2,3494.6,2.14121998]
[1718340414500,7.45,3495.2,3494.6,2.14121998]
[1718340414688,0.669,3495.1,3494.6,2.14121998]
[1718340414879,0.669,3495.1,3494.7,0.460962]
[1718340415202,0.669,3495.1,3494.8,1.43344514]
[1718340415404,0.669,3495.1,3494.8,1.68197477]
[1718340415970,3.0,3495.5,3494.8,1.68197477]
[1718340416172,0.669,3495.2,3494.8,1.43344514]
[1718340416409,0.669,3495.2,3494.9,0.24847022]
[1718340417372,0.669,3495.3,3494.9,2.60577022]
[1718340417571,0.669,3495.3,3494.9,2.3573]
[1718340418009,3.0,3495.5,3494.9,2.3573]
[1718340418188,0.669,3495.3,3494.9,2.3573]
[1718340418374,0.669,3495.3,3494.9,2.78000259]
[1718340418907,7.45,3495.6,3495.0,1.49066727]
[1718340419105,7.45,3495.6,3495.1,2.4917]
[1718340419285,7.45,3495.6,3495.1,4.17368035]
[1718340419877,12.38,3496.0,3495.1,4.17368035]
[1718340419878,19.83,3496.0,3495.2,1.49066217]
[1718340420077,19.83,3496.0,3495.4,2.4988]
[1718340420285,19.83,3496.0,3495.4,3.93224514]
[1718340420286,0.669,3495.9,3495.4,3.93224514]
[1718340420507,19.83,3496.0,3495.5,1.73885006]
[1718340420807,2.3815,3496.3,3495.5,1.73885006]
[1718340420974,0.669,3496.1,3495.5,1.73885006]
[1718340423909,0.669,3496.1,3495.5,1.68163777]
[1718340424808,7.45,3496.4,3495.6,2.3968]
[1718340425020,3.0,3496.3,3495.7,0.2479651]
[1718340425307,7.45,3496.4,3495.6,2.3968]
[1718340425517,0.669,3496.2,3495.6,3.83024514]
[1718340425699,0.669,3496.2,3495.7,0.2479651]
[1718340426979,7.45,3496.4,3495.7,1.73861923]
[1718340427201,0.669,3496.3,3495.7,1.73861923]
[1718340428397,7.45,3496.4,3495.8,3.76085203]
[1718340428607,7.45,3496.4,3495.9,2.55244636]
[1718340428790,7.45,3496.4,3496.1,2.3046]
[1718340428994,7.45,3496.4,3496.2,1.68111341]
[1718340429315,0.669,3496.8,3496.2,1.68111341]
[1718340429506,7.45,3497.0,3496.3,0.0571975]
[1718340429713,0.669,3496.8,3496.3,1.49064264]
[1718340429924,0.669,3496.8,3496.4,0.24754955]
[1718340430420,0.669,3496.8,3496.3,1.43344514]
[1718340431412,3.0,3496.9,3496.3,1.43344514]
[1718340431413,3.0,3496.9,3496.3,1.87286229]
[1718340431622,8.119,3497.0,3496.4,0.24754955]
[1718340431913,8.119,3497.0,3496.3,1.87286229]
[1718340434407,8.119,3497.0,3496.3,1.43344514]
[1718340435279,0.669,3496.8,3496.1,2.3046]
[1718340435484,0.669,3496.8,3496.2,1.43344514]
[1718340436310,0.669,3496.6,3496.2,1.43344514]
[1718340436725,0.669,3496.6,3496.3,0.24716274]
[1718340437135,0.669,3496.6,3496.2,1.43344514]
[1718340437424,0.669,3496.6,3496.3,0.24716274]
[1718340437632,0.669,3496.6,3496.2,1.43344514]
[1718340437827,0.669,3496.6,3496.3,0.24716274]
[1718340437997,0.669,3496.6,3496.2,1.43344514]
[1718340438322,0.669,3496.6,3496.3,0.24716274]
[1718340438731,0.669,3496.6,3496.2,1.43344514]
[1718340438906,0.669,3496.6,3496.4,0.24710339]
[1718340439109,0.669,3496.6,3496.3,0.24716274]
[1718340439304,0.669,3496.6,3496.2,1.43344514]
[1718340439621,0.669,3496.6,3496.3,0.24716274]
[1718340439820,0.669,3496.6,3496.1,2.3046]
[1718340440193,0.669,3496.6,3496.2,0.2472221]
[1718340440405,0.669,3496.6,3496.1,2.3046]
[1718340440645,0.669,3496.6,3496.3,0.24716274]
[1718340440816,0.669,3496.6,3496.1,2.3046]
[1718340441023,0.669,3496.6,3496.4,0.24710339]
[1718340441341,0.669,3496.6,3496.1,2.3046]
[1718340441712,0.669,3496.6,3496.2,0.24717033]
[1718340441912,0.669,3496.6,3496.1,2.3046]
[1718340442215,0.669,3496.6,3496.2,0.24717033]
[1718340442402,0.669,3496.6,3496.1,2.3046]
[1718340442607,0.669,3496.6,3496.3,0.247111]
[1718340442820,0.669,3496.6,3496.1,2.3046]
[1718340443099,0.669,3496.6,3496.4,0.24705164]
[1718340443298,0.669,3496.6,3496.1,2.3046]
[1718340443610,0.669,3496.6,3496.2,0.24717035]
[1718340443797,0.669,3496.6,3496.1,2.3046]
[1718340443997,0.669,3496.6,3496.2,0.24717035]
[1718340444210,0.669,3496.6,3496.1,2.3046]
[1718340444406,0.669,3496.6,3496.3,0.247111]
[1718340444598,0.669,3496.6,3496.1,2.3046]
[1718340444798,0.669,3496.6,3496.2,0.24717035]
[1718340444999,0.669,3496.6,3496.1,2.3046]
[1718340445223,0.669,3496.6,3496.2,0.24717035]
[1718340445529,0.669,3496.6,3496.1,2.3046]
[1718340445733,2.3938,3496.9,3496.1,2.3046]
[1718340445897,0.669,3496.6,3496.2,0.24717035]
[1718340446099,0.669,3496.6,3496.1,2.3046]
[1718340446337,0.669,3496.6,3496.3,0.247111]
[1718340446502,0.669,3496.6,3496.2,0.24717035]
[1718340446704,0.669,3496.6,3496.1,2.3046]
[1718340446898,0.669,3496.6,3496.3,0.247111]
[1718340447104,0.669,3496.4,3495.7,2.2793]
[1718340447410,0.669,3496.4,3495.8,1.43344514]
[1718340449426,0.669,3496.2,3495.8,1.43344514]
[1718340453753,0.669,3496.2,3495.9,0.24746088]
[1718340454037,0.669,3496.2,3495.9,1.68090602]
[1718340456847,2.481,3496.5,3495.9,1.68090602]
[1718340457012,0.669,3496.3,3495.9,2.07692662]
[1718340457212,3.0,3496.7,3495.9,2.07692662]
[1718340457444,0.669,3496.4,3495.9,1.68090602]
[1718340462262,0.669,3496.2,3495.9,1.68090602]
[1718340468571,0.669,3496.3,3495.9,1.68090602]
[1718340468724,0.669,3496.3,3495.9,2.07692662]
[1718340473330,0.669,3496.3,3495.9,1.68090602]
[1718340489367,0.669,3496.3,3495.9,0.24746088]
[1718340489776,0.669,3496.3,3495.7,2.2793]
[1718340490080,0.669,3496.3,3495.7,3.71274514]
[1718340490286,0.669,3496.3,3495.8,0.24754652]
[1718340490781,0.669,3496.3,3495.9,0.24748715]
[1718340491178,0.669,3496.3,3495.7,3.71274514]
[1718340491467,0.669,3496.3,3495.7,4.08401965]
[1718340491668,0.669,3496.3,3495.8,0.24754652]
[1718340492082,0.669,3496.3,3495.9,0.24748715]
[1718340492458,0.669,3496.3,3496.0,0.24742778]
[1718340492889,0.669,3496.3,3495.7,4.08401965]
[1718340493092,0.669,3496.3,3496.1,0.24736841]
[1718340493255,0.669,3496.3,3495.7,4.08401965]
[1718340493667,0.669,3496.3,3495.8,0.24754652]
[1718340493878,0.669,3496.3,3495.7,4.08401965]
[1718340494368,0.669,3496.3,3495.8,0.24754652]
[1718340494875,0.669,3496.3,3495.7,4.08401965]
[1718340495075,0.669,3496.3,3495.9,0.24748715]
[1718340495453,0.669,3496.3,3495.7,4.08401965]
[1718340495859,0.669,3496.3,3495.8,0.24757275]
[1718340496159,0.669,3496.3,3495.7,2.2793]
[1718340496374,0.669,3496.1,3495.9,0.24751338]
[1718340496576,0.669,3496.1,3495.8,0.24757275]
[1718340496774,0.669,3496.1,3496.0,0.24745401]
[1718340496969,0.669,3496.1,3495.9,0.24751338]
[1718340497175,0.669,3496.1,3496.0,0.24745401]
[1718340497587,0.669,3496.1,3495.7,2.2793]
[1718340497789,0.669,3496.1,3496.0,0.24745401]
[1718340497961,0.669,3496.1,3495.7,2.2793]
[1718340498163,0.669,3496.1,3496.0,0.24745401]
[1718340498362,0.669,3496.1,3495.7,2.2793]
[1718340498562,0.669,3496.1,3496.0,0.24745401]
[1718340498762,0.669,3496.1,3495.7,2.2793]
[1718340498997,0.669,3496.1,3496.0,0.24745401]
[1718340499209,0.669,3496.1,3495.7,2.2793]
[1718340499366,0.669,3496.1,3496.0,0.24745401]
[1718340499569,0.669,3496.1,3495.7,2.2793]
[1718340499809,0.669,3496.1,3496.0,0.24745401]
[1718340499964,0.669,3496.1,3495.7,2.2793]
[1718340500165,0.669,3496.1,3496.0,0.24745401]
[1718340500366,0.669,3496.1,3495.7,2.2793]
[1718340500691,0.669,3496.1,3496.0,0.24745401]
[1718340500887,0.669,3496.1,3495.8,0.24757275]
[1718340501088,0.669,3496.1,3495.7,2.2793]
[1718340501398,0.669,3496.1,3495.9,0.24751338]
[1718340501568,0.669,3496.1,3495.8,0.24757275]
[1718340501770,0.669,3496.1,3495.7,2.2793]
[1718340501983,0.669,3496.1,3495.9,0.24751338]
[1718340502184,0.669,3496.1,3495.8,0.24757275]
[1718340502372,0.669,3496.1,3496.0,0.24745401]
[1718340502695,0.669,3496.1,3495.7,2.2793]
[1718340502903,0.669,3496.1,3496.0,0.24745401]
[1718340503268,0.669,3496.1,3495.7,2.2793]
[1718340503468,0.669,3496.1,3496.0,0.24745401]
[1718340503663,0.669,3496.1,3495.7,2.2793]
[1718340503895,0.669,3496.1,3496.0,0.24745401]
[1718340504306,0.669,3496.1,3495.7,2.2793]
[1718340504475,0.669,3496.1,3496.0,0.24745401]
[1718340504880,0.669,3496.1,3495.7,2.2793]
[1718340505082,0.669,3496.1,3496.0,0.24745401]
[1718340505478,0.669,3496.1,3495.7,2.2793]
[1718340505671,0.669,3496.1,3495.7,2.50723]
[1718340506072,0.669,3496.1,3495.8,0.24755402]
[1718340506475,0.669,3496.1,3495.7,2.2793]
[1718340506795,0.669,3496.1,3495.8,0.24755402]
[1718340507182,0.669,3496.1,3495.7,2.2793]
[1718340507380,0.669,3496.1,3495.9,0.24749465]
[1718340507597,0.669,3496.1,3495.8,0.24755402]
[1718340507905,0.669,3496.1,3495.9,0.24749465]
[1718340508105,0.669,3496.1,3495.7,2.2793]
[1718340508477,0.669,3496.1,3495.8,0.24755402]
[1718340508866,0.669,3496.1,3495.7,2.2793]
[1718340509070,0.669,3496.1,3495.8,0.24755402]
[1718340509470,0.669,3496.1,3495.9,0.24749465]
[1718340509900,0.669,3496.1,3496.0,0.24743528]
[1718340510205,0.669,3496.1,3495.7,2.2793]
[1718340510501,0.669,3496.1,3496.0,0.24743528]
[1718340510741,0.669,3496.1,3495.7,2.50723]
[1718340510907,0.669,3496.1,3495.8,0.24755402]
[1718340511270,0.669,3496.1,3495.9,0.24749465]
[1718340511488,0.669,3496.1,3495.7,2.50723]
[1718340511895,0.669,3496.1,3495.8,0.24755402]
[1718340512308,0.669,3496.1,3495.7,2.50723]
[1718340512626,0.669,3496.1,3495.9,0.24749465]
[1718340512928,0.669,3496.1,3495.8,0.24755402]
[1718340513084,0.669,3496.1,3496.0,0.24743528]
[1718340513415,0.669,3496.4,3495.8,0.05721086]
[1718340513619,0.669,3496.4,3496.0,0.24743528]
[1718340513821,0.669,3496.4,3495.9,1.91459088]
[1718340514038,0.669,3496.4,3496.1,0.24737591]
[1718340514185,0.669,3496.4,3496.0,0.24743528]
[1718340514385,0.669,3496.4,3496.2,0.24731655]
[1718340514678,0.669,3496.4,3495.9,1.66709623]
[1718340514876,0.669,3496.4,3496.3,0.2472572]
[1718340515496,0.669,3496.4,3495.9,1.43344514]
[1718340515677,0.669,3496.4,3496.3,0.2472572]
[1718340515881,0.669,3496.4,3495.9,1.43344514]
[1718340516381,0.669,3496.4,3496.0,0.24743528]
[1718340517814,0.669,3496.2,3496.0,0.24743528]
[1718340521320,0.669,3496.2,3496.0,0.24743528]
[1718340521897,3.0815,3496.2,3496.0,0.24743528]
[1718340522115,3.0815,3496.2,3495.3,0.17391974]
[1718340522308,3.0815,3496.2,3496.1,0.24731591]
[1718340522511,3.0815,3496.2,3495.4,2.03011457]
[1718340523020,3.0815,3496.2,3495.5,0.24767215]
[1718340523523,0.669,3496.0,3495.5,0.24767215]
[1718340525925,0.669,3495.6,3495.5,0.24767215]
[1718340526221,0.669,3495.6,3494.9,2.4763]
[1718340526426,0.669,3495.3,3495.0,1.43344514]
[1718340527902,2.4309,3495.9,3495.0,1.43344514]
[1718340528140,0.669,3495.6,3495.1,0.05721706]
[1718340528304,0.669,3495.6,3495.1,1.43344514]
[1718340528819,0.669,3495.6,3495.2,0.24556359]
[1718340529338,2.4309,3495.9,3495.2,0.24556359]
[1718340529542,0.669,3495.6,3495.2,0.24556359]
[1718340530508,0.669,3495.6,3495.2,0.70617944]
[1718340537216,0.669,3495.6,3495.2,0.24556359]
[1718340537958,0.669,3495.4,3495.2,0.24556359]
[1718340540455,2.3619,3496.2,3495.3,2.3979]
[1718340540656,0.669,3495.7,3495.3,2.3979]
[1718340540859,0.669,3495.7,3495.4,0.65326295]
[1718340541156,0.669,3495.7,3495.4,2.1439226]
[1718340542250,3.0,3496.1,3495.4,2.1439226]
[1718340542422,0.669,3495.8,3495.4,1.73623173]
[1718340545724,3.0,3496.1,3495.4,0.24557208]
[1718340545925,0.669,3495.6,3494.9,2.4842]
[1718340546126,0.669,3495.6,3495.0,1.67925479]
[1718340546373,0.669,3495.6,3495.1,0.41634548]
[1718340546571,0.669,3495.6,3495.2,0.24569086]
[1718340559144,3.0,3496.0,3495.2,0.24569086]
[1718340559350,0.669,3495.5,3495.2,0.24569086]
[1718340581986,0.669,3495.3,3494.6,2.33]
[1718340582155,0.669,3495.3,3494.7,1.97235317]
[1718340601369,2.3421,3495.5,3494.7,1.97235317]
[1718340601570,0.669,3495.2,3494.8,0.05722146]
[1718340601765,2.3421,3495.5,3494.9,0.23758097]
[1718340601991,0.669,3495.3,3494.9,0.23758097]
[1718340602269,0.669,3495.3,3494.9,0.66697111]
[1718340611484,0.669,3495.3,3495.0,2.4857]
[1718340611786,0.669,3495.3,3495.1,0.23746217]
[1718340613410,7.45,3495.7,3495.3,2.3579]
[1718340613627,7.45,3495.7,3495.5,2.3579]
[1718340613963,2.3658,3496.5,3495.6,1.72777984]
[1718340614233,7.45,3496.6,3495.7,2.3425]
[1718340614234,0.669,3496.4,3495.7,2.3425]
[1718340614408,0.669,3496.4,3495.8,1.72761086]
[1718340618386,3.0,3496.5,3495.8,1.72761086]
[1718340618788,0.669,3496.4,3495.8,1.72761086]
[1718340619025,0.669,3496.4,3495.8,2.13462195]
[1718340619221,3.0,3496.5,3495.8,2.13462195]
[1718340619402,0.669,3496.4,3495.8,2.13462195]
[1718340621725,3.0,3496.5,3495.8,2.13462195]
[1718340621921,0.669,3496.4,3495.8,2.13462195]
[1718340622225,3.0,3496.5,3495.9,0.4477122]
[1718340622425,0.669,3496.4,3495.9,1.88115734]
[1718340629254,3.0,3496.5,3495.9,1.88115734]
[1718340629396,7.45,3496.6,3496.0,3.8310502]
[1718340629592,7.45,3496.6,3496.1,2.57684067]
[1718340629837,7.45,3496.6,3496.3,2.3404]
[1718340630026,19.83,3497.1,3496.4,1.43344514]
[1718340630190,0.669,3497.0,3496.5,0.05719398]
[1718340630509,0.669,3497.0,3496.6,1.66958905]
[1718340631022,19.83,3497.1,3496.6,1.66958905]
[1718340631398,19.83,3497.1,3496.7,2.2562]
[1718340631597,19.83,3497.1,3496.8,1.72666268]
[1718340632108,19.83,3497.1,3496.9,2.3614]
[1718340632417,19.83,3497.1,3497.0,3.85203143]
[1718340632609,7.45,3497.4,3497.0,4.08745083]
[1718340634252,7.45,3497.4,3497.0,1.66886454]
[1718340634929,0.669,3497.3,3497.0,1.66886454]
[1718340635340,0.8119,3497.3,3497.0,0.2354194]
[1718340635516,0.669,3497.1,3497.0,0.2354194]
[1718340635718,0.669,3497.1,3496.5,2.3403]
[1718340636033,0.669,3496.9,3496.2,2.4966]
[1718340636231,0.669,3496.9,3496.3,1.43344514]
[1718340637332,0.669,3496.9,3496.3,1.82644965]
[1718340643361,7.45,3497.4,3496.4,0.05719601]
[1718340643651,0.669,3497.2,3496.5,1.43344514]
[1718340643849,0.669,3497.2,3496.6,0.05719189]
[1718340644145,8.119,3497.4,3496.7,3.81954514]
[1718340646116,0.669,3497.4,3496.7,3.81954514]
[1718340646448,3.0,3497.7,3496.8,0.05718579]
[1718340646744,0.669,3497.6,3496.9,1.43344514]
[1718340646949,0.669,3497.6,3497.0,0.44485802]
[1718340647115,0.669,3497.6,3497.1,1.43344514]
[1718340647314,0.669,3497.6,3497.2,0.23498106]
[1718340649233,9.8795,3497.8,3497.3,1.4906299]
[1718340649234,7.45,3497.8,3497.3,1.4906299]
[1718340649528,7.45,3497.8,3497.4,2.3115]
[1718340649752,7.45,3497.8,3497.5,1.43344514]
[1718340649954,0.669,3497.9,3497.5,1.43344514]
[1718340650149,0.669,3497.9,3497.6,0.23453938]
[1718340650353,0.669,3497.9,3497.5,1.43344514]
[1718340651789,0.669,3497.7,3497.1,2.3024]
[1718340651950,0.669,3497.7,3497.2,1.43344514]
[1718340652155,0.669,3497.7,3497.3,0.23471732]
[1718340652355,0.669,3497.7,3497.3,1.66816246]
[1718340652551,0.669,3497.7,3497.3,1.43344514]
[1718340668471,3.0,3498.0,3497.3,1.43344514]
[1718340668678,2.3135,3498.2,3497.4,1.43344514]
[1718340668979,0.669,3498.0,3497.5,2.48]
[1718340669174,0.669,3498.0,3497.6,0.23437214]
[1718340670157,3.0,3498.1,3497.6,0.23437214]
[1718340670357,3.0,3498.2,3497.6,1.66781728]
[1718340670587,0.669,3498.2,3497.6,1.43344514]
[1718340672790,7.45,3498.3,3497.6,1.82478965]
[1718340672992,0.669,3498.2,3497.7,1.43344514]
[1718340673167,7.45,3498.3,3497.8,0.05717376]
[1718340673373,8.119,3498.3,3497.9,3.78304514]
[1718340673694,7.45,3498.3,3498.0,0.23413492]
[1718340674190,0.669,3498.4,3498.0,1.66758006]
[1718340674559,0.669,3498.4,3498.1,1.43344514]
[1718340674796,0.669,3498.5,3498.2,0.23376741]
[1718340676198,3.0,3498.7,3498.2,0.23376741]
[1718340676498,0.669,3498.6,3498.2,0.23376741]
[1718340678500,3.0,3498.7,3498.3,1.43344514]
[1718340678707,0.669,3498.7,3498.3,1.43344514]
[1718340678907,0.669,3498.7,3498.4,0.23364883]
[1718340679284,7.45,3498.8,3498.3,1.43344514]
[1718340679496,0.669,3498.6,3498.3,1.57678965]
[1718340679670,7.45,3498.8,3498.4,0.23334423]
[1718340680113,0.669,3498.7,3498.3,4.00018965]
[1718340680409,0.669,3498.7,3498.4,0.23334423]
[1718340680787,0.669,3498.7,3498.3,4.00018965]
[1718340680972,7.45,3498.8,3498.4,0.23334423]
[1718340681164,0.669,3498.7,3498.3,4.00018965]
[1718340681370,0.669,3498.7,3498.4,0.23334423]
[1718340681671,0.669,3498.7,3498.3,4.00018965]
[1718340682070,0.669,3498.7,3498.4,0.23332195]
[1718340682473,0.669,3498.7,3498.3,4.00018965]
[1718340682875,0.669,3498.7,3498.4,0.23332195]
[1718340683322,0.669,3498.7,3498.3,4.00018965]
[1718340683672,0.669,3498.7,3498.4,0.23332195]
[1718340684106,0.669,3498.7,3498.3,4.00018965]
[1718340686110,0.669,3498.7,3498.3,1.57678965]
[1718340686297,0.669,3498.5,3498.3,1.57678965]
[1718340686504,0.669,3498.5,3498.4,0.23332195]
[1718340686889,0.669,3498.5,3498.3,1.43344514]
[1718340687307,0.669,3498.5,3498.4,0.23332195]
[1718340687734,0.669,3498.5,3498.3,1.43344514]
[1718340687934,0.669,3498.5,3498.0,2.4351]
[1718340688117,2.469,3498.6,3498.1,1.43344514]
[1718340688317,0.669,3498.3,3498.1,1.43344514]
[1718340688499,0.669,3498.3,3498.2,0.23344052]
[1718340691227,0.669,3498.3,3498.2,0.04702052]
[1718340691398,0.669,3498.3,3498.2,0.10295395]
[1718340691906,0.669,3498.3,3497.6,2.80404451]
[1718340692107,0.669,3498.3,3498.2,0.22302814]
[1718340692319,0.669,3498.3,3497.7,1.43344514]
[1718340692521,2.469,3498.6,3498.2,0.22302814]
[1718340692719,2.2804,3498.2,3497.3,2.3939]
[1718340692912,0.669,3497.9,3497.4,1.43344514]
[1718340693308,0.669,3497.9,3497.5,0.22344326]
[1718340693521,0.669,3497.9,3497.6,1.43344514]
[1718340693939,0.669,3497.9,3497.7,0.22332464]
[1718340694531,2.2804,3498.2,3497.7,0.22332464]
[1718340694711,0.669,3498.1,3497.7,0.22332464]
[1718340697533,0.669,3498.1,3497.6,1.43344514]
[1718340698038,0.669,3498.1,3497.7,0.22332464]
[1718340699051,7.45,3498.5,3497.7,0.22332464]
[1718340699264,0.669,3498.1,3497.7,0.22332464]
[1718340699540,0.669,3498.1,3497.7,0.38900162]
[1718340701671,9.8362,3498.5,3497.7,0.38900162]
[1718340701827,0.669,3498.2,3497.7,0.22332464]
[1718340702029,0.669,3498.2,3497.6,1.43344514]
[1718340702328,0.669,3498.2,3497.7,0.22345092]
[1718340704145,0.669,3498.2,3497.7,2.52825092]
[1718340706161,0.669,3498.2,3497.7,2.92442053]
[1718340707862,9.8362,3498.5,3497.7,4.35786567]
[1718340708035,7.45,3498.5,3497.7,4.35786567]
[1718340708241,0.669,3498.3,3497.7,4.35786567]
[1718340708642,0.669,3498.3,3497.8,1.43344514]
[1718340708862,0.669,3498.3,3497.8,1.84688661]
[1718340709065,0.669,3498.3,3497.9,0.22330261]
[1718340720100,2.371,3498.2,3497.9,0.22330261]
[1718340720374,0.669,3498.0,3497.1,2.3486]
[1718340720535,0.669,3497.7,3497.2,1.64938773]
[1718340721005,3.0,3498.1,3497.3,0.05718286]
[1718340721175,0.669,3498.0,3497.4,1.43344514]
[1718340721335,0.669,3498.0,3497.4,1.64943527]
[1718340722375,0.669,3498.0,3497.4,2.07996523]
[1718340724974,3.0,3498.1,3497.4,2.07996523]
[1718340724975,0.669,3497.8,3497.4,2.07996523]
[1718340725162,0.669,3497.8,3497.4,1.64943527]
[1718340725755,3.0,3498.1,3497.4,1.64943527]
[1718340725956,0.669,3497.8,3497.4,1.64943527]
[1718340726154,2.371,3498.2,3497.4,1.64943527]
[1718340726155,3.0,3498.1,3497.4,1.64943527]
[1718340726452,0.669,3497.8,3497.4,1.64943527]
[1718340730052,2.4762,3497.7,3497.4,0.21599013]
[1718340730253,0.669,3497.6,3497.4,0.21599013]
[1718340730498,0.669,3497.6,3497.1,2.3486]
[1718340730671,0.669,3497.6,3497.5,0.21622257]
[1718340730870,0.669,3497.6,3497.2,1.43344514]
[1718340731076,0.669,3497.6,3497.5,0.21622257]
[1718340731261,0.669,3497.6,3497.2,1.43344514]
[1718340731463,0.669,3497.6,3497.5,0.21622257]
[1718340731664,0.669,3497.6,3497.2,1.43344514]
[1718340731896,0.669,3497.6,3497.5,0.21148924]
[1718340732058,0.669,3497.6,3497.2,1.43344514]
[1718340732393,0.669,3497.6,3497.2,1.40544514]
[1718340732556,2.4762,3497.7,3497.3,0.21160787]
[1718340732757,0.669,3497.6,3497.2,1.40544514]
[1718340732957,0.669,3497.6,3497.3,0.21160787]
[1718340733169,0.669,3497.6,3497.2,1.40544514]
[1718340733401,0.669,3497.6,3497.3,0.21160787]
[1718340733560,0.669,3497.6,3497.2,1.40544514]
[1718340733759,0.669,3497.6,3497.3,0.21160787]
[1718340734096,0.669,3497.6,3497.2,1.40544514]
[1718340734395,0.669,3497.6,3497.3,0.21160787]
[1718340734554,0.669,3497.4,3497.2,1.40544514]
[1718340734762,0.669,3497.4,3497.3,0.21160787]
[1718340735062,2.3258,3497.3,3497.0,0.12529016]
[1718340735262,0.669,3497.1,3497.0,0.12529016]
[1718340735918,0.669,3497.1,3496.6,2.2797]
[1718340736064,0.669,3497.1,3496.6,3.71314514]
[1718340737003,0.669,3497.1,3496.6,1.43344514]
[1718340739005,0.669,3497.0,3496.6,1.43344514]
[1718340739209,0.669,3497.0,3496.7,0.21204144]
[1718340745312,0.669,3496.8,3496.7,0.21204144]
[1718340745522,3.0628,3496.8,3496.7,0.21204144]
[1718340745728,3.0628,3496.8,3496.1,2.2565]
[1718340745915,3.0628,3496.8,3496.7,0.21232224]
[1718340746100,3.0628,3496.8,3496.2,1.43344514]
[1718340746741,3.0628,3496.8,3496.3,0.21255963]
[1718340746895,3.0628,3496.8,3496.3,1.64600477]
[1718340747221,3.0628,3496.8,3496.4,0.21250028]
[1718340748008,2.3938,3496.8,3496.4,0.21250028]
[1718340748401,0.669,3496.7,3496.4,0.21250028]
[1718340751449,0.669,3496.7,3496.1,2.2565]
[1718340751651,0.669,3496.7,3496.2,0.21292568]
[1718340759087,2.3552,3497.0,3496.2,0.21292568]
[1718340759359,0.669,3496.6,3496.2,0.21292568]
[1718340759563,0.669,3496.6,3496.2,0.60321276]
[1718340764345,0.669,3496.6,3496.2,0.21292568]
[1718340774156,7.45,3497.1,3496.3,1.43344514]
[1718340774353,7.45,3497.1,3496.4,2.3201]
[1718340774589,7.45,3497.1,3496.5,1.43344514]
[1718340774894,0.669,3497.2,3496.6,0.21295808]
[1718340775201,0.669,3497.2,3496.7,1.43344514]
[1718340775376,3.0,3497.5,3496.8,2.37728875]
[1718340775578,0.669,3497.3,3496.9,1.43344514]
[1718340775976,0.669,3497.3,3497.0,0.21272073]
[1718340780189,3.0,3497.7,3497.0,0.21272073]
[1718340780402,3.0,3497.9,3497.2,2.4863]
[1718340780705,0.669,3497.7,3497.3,0.21233948]
[1718340781201,3.0,3497.9,3497.2,3.91974514]
[1718340781378,0.669,3497.6,3497.4,0.21228016]
[1718340781575,0.669,3497.6,3497.3,0.21233948]
[1718340781825,0.669,3497.6,3497.5,0.21222084]
[1718340781969,0.669,3497.6,3497.4,0.21228016]
[1718340782169,3.0,3497.9,3497.5,0.21222084]
[1718340782507,0.669,3497.6,3497.2,3.91974514]
[1718340782866,0.669,3497.6,3497.3,0.21233948]
[1718340783071,0.669,3497.6,3497.2,3.91974514]
[1718340783305,0.669,3497.6,3497.3,0.21233948]
[1718340783907,0.669,3497.6,3497.4,0.21228016]
[1718340784507,0.669,3497.6,3497.5,0.21222084]
[1718340784871,0.669,3497.6,3497.2,3.91974514]
[1718340785074,0.669,3497.6,3497.3,0.21233948]
[1718340785270,3.0,3497.9,3497.4,1.43344514]
[1718340785604,0.669,3497.6,3497.4,1.43344514]
[1718340785904,3.0,3497.9,3497.5,0.21222084]
[1718340786206,0.669,3497.7,3497.5,1.64566598]
[1718340786505,0.669,3497.7,3497.6,0.21216153]
[1718340787072,3.0,3497.9,3497.6,0.21216153]
[1718340787302,3.0,3497.9,3497.5,1.43344514]
[1718340787303,0.669,3497.7,3497.5,1.43344514]
[1718340787716,0.669,3497.7,3497.6,0.21216153]
[1718340789375,3.0,3497.9,3497.6,0.21216153]
[1718340789623,0.669,3497.7,3497.6,0.21216153]
[1718340789829,2.9648,3497.7,3496.8,2.4937]
[1718340790111,0.669,3497.5,3496.9,1.64602193]
[1718340791207,0.669,3497.5,3497.0,0.41397219]
[1718340791517,0.669,3497.5,3497.1,1.64575917]
[1718340794419,0.669,3497.5,3497.1,0.21231403]
[1718340794713,0.669,3497.5,3496.8,2.4937]
[1718340794912,0.669,3497.5,3497.2,0.2122547]
[1718340795103,0.669,3497.5,3496.9,1.43344514]
[1718340795416,0.669,3497.3,3496.9,1.43344514]
[1718340798023,2.2958,3497.7,3496.9,1.43344514]
[1718340798192,0.669,3497.4,3496.9,1.43344514]
[1718340804405,2.2958,3497.7,3496.9,1.43344514]